[Event "Late-Titled-Tuesday-Blitz-January-16-2024"]
[Site "Chess.com"]
[Date "2024.01.16"]
[Round "11"]
[White "ATM622"]
[Black "karinachess1"]
[Result "1-0"]
[WhiteElo "2496"]
[BlackElo "2612"]
[TimeControl "180+1"]
[EndTime "16:05:35 PST"]
[Termination "ATM622 won on time"]

1. d4 {[%clk 0:03:00.9]} 1... Nf6 {[%clk 0:02:59.8]} 2. c4 {[%clk 0:03:01.3]}
2... e6 {[%clk 0:02:59.8]} 3. g3 {[%clk 0:03:01.5]} 3... d5 {[%clk 0:02:59.9]}
4. Bg2 {[%clk 0:03:01.9]} 4... dxc4 {[%clk 0:03:00.2]} 5. Nf3 {[%clk 0:03:02]}
5... Nc6 {[%clk 0:02:59.7]} 6. O-O {[%clk 0:03:02.3]} 6... Rb8 {[%clk
0:02:59.7]} 7. Nc3 {[%clk 0:02:56.9]} 7... b5 {[%clk 0:03:00]} 8. e4 {[%clk
0:02:55.2]} 8... Be7 {[%clk 0:02:55]} 9. d5 {[%clk 0:02:52.5]} 9... Nb4 {[%clk
0:02:55.2]} 10. Ne5 {[%clk 0:02:50.8]} 10... Bd6 {[%clk 0:02:33.3]} 11. f4
{[%clk 0:02:48.8]} 11... exd5 {[%clk 0:02:31.5]} 12. exd5 {[%clk 0:02:44.8]}
12... Bd7 {[%clk 0:02:11.2]} 13. a3 {[%clk 0:02:43]} 13... Na6 {[%clk
0:02:03.2]} 14. Qe2 {[%clk 0:02:40.7]} 14... O-O {[%clk 0:02:02.5]} 15. Be3
{[%clk 0:02:36.9]} 15... Nc5 {[%clk 0:02:00.9]} 16. h3 {[%clk 0:02:32.7]} 16...
Re8 {[%clk 0:01:58.9]} 17. Qf2 {[%clk 0:02:27.3]} 17... Bxe5 {[%clk 0:01:29]}
18. Bxc5 {[%clk 0:02:22.7]} 18... Bd6 {[%clk 0:01:18.3]} 19. Bxa7 {[%clk
0:02:15.6]} 19... Ra8 {[%clk 0:01:18.6]} 20. Bd4 {[%clk 0:02:15.4]} 20... Rb8
{[%clk 0:01:07.8]} 21. Rfe1 {[%clk 0:02:15.3]} 21... Bf5 {[%clk 0:01:07.1]} 22.
g4 {[%clk 0:02:12.2]} 22... Bd3 {[%clk 0:01:06.6]} 23. Rxe8+ {[%clk 0:02:08.7]}
23... Nxe8 {[%clk 0:01:06.3]} 24. Re1 {[%clk 0:01:50.4]} 24... Qd7 {[%clk
0:01:06.7]} 25. Be4 {[%clk 0:01:46.2]} 25... b4 {[%clk 0:01:02.1]} 26. axb4
{[%clk 0:01:43.9]} 26... Bxb4 {[%clk 0:00:54.8]} 27. Bxd3 {[%clk 0:01:41.2]}
27... cxd3 {[%clk 0:00:55.7]} 28. Qf3 {[%clk 0:01:40.4]} 28... d2 {[%clk
0:00:55]} 29. Rd1 {[%clk 0:01:38.6]} 29... c6 {[%clk 0:00:30.2]} 30. Be5 {[%clk
0:01:37]} 30... Bc5+ {[%clk 0:00:30.2]} 31. Kg2 {[%clk 0:01:35.9]} 31... cxd5
{[%clk 0:00:24.7]} 32. Rxd2 {[%clk 0:01:33.9]} 32... d4 {[%clk 0:00:23.1]} 33.
Bxb8 {[%clk 0:01:33.3]} 33... Qc8 {[%clk 0:00:15.2]} 34. Ne4 {[%clk 0:01:32.7]}
34... Bb6 {[%clk 0:00:11.6]} 35. Be5 {[%clk 0:01:32.2]} 35... Qc4 {[%clk
0:00:08.1]} 36. Qd3 {[%clk 0:01:31.9]} 36... Qd5 {[%clk 0:00:06.8]} 37. Bxd4
{[%clk 0:01:24.5]} 37... Ba5 {[%clk 0:00:07.3]} 38. Bc3 {[%clk 0:01:23.6]} 1-0

[Event "Late-Titled-Tuesday-Blitz-January-16-2024"]
[Site "Chess.com"]
[Date "2024.01.16"]
[Round "11"]
[White "thesupera12"]
[Black "JCVanDamme10"]
[Result "1-0"]
[WhiteElo "2507"]
[BlackElo "2340"]
[TimeControl "180+1"]
[EndTime "16:05:37 PST"]
[Termination "thesupera12 won on time"]

1. b3 {[%clk 0:03:00.9]} 1... e5 {[%clk 0:02:55.8]} 2. Bb2 {[%clk 0:03:01.8]}
2... Nc6 {[%clk 0:02:55.7]} 3. e3 {[%clk 0:03:02.5]} 3... a6 {[%clk 0:02:56.2]}
4. Nf3 {[%clk 0:03:01.9]} 4... f5 {[%clk 0:02:54.6]} 5. Nxe5 {[%clk 0:03:00.8]}
5... Nf6 {[%clk 0:02:53.6]} 6. Nxc6 {[%clk 0:02:58.8]} 6... dxc6 {[%clk
0:02:53.8]} 7. Be2 {[%clk 0:02:59.7]} 7... Bd6 {[%clk 0:02:52.4]} 8. O-O {[%clk
0:03:00.1]} 8... O-O {[%clk 0:02:52.9]} 9. d4 {[%clk 0:02:59.6]} 9... Ne4 {[%clk
0:02:51.4]} 10. Nd2 {[%clk 0:02:59.2]} 10... Qh4 {[%clk 0:02:47]} 11. Nf3 {[%clk
0:02:58.9]} 11... Qh6 {[%clk 0:02:46]} 12. g3 {[%clk 0:02:57.8]} 12... Nf6
{[%clk 0:02:39.8]} 13. Ne5 {[%clk 0:02:56.2]} 13... Bxe5 {[%clk 0:02:36.7]} 14.
dxe5 {[%clk 0:02:55.6]} 14... Ng4 {[%clk 0:02:35.9]} 15. Bxg4 {[%clk 0:02:55.6]}
15... fxg4 {[%clk 0:02:36.1]} 16. Qd4 {[%clk 0:02:54.1]} 16... Be6 {[%clk
0:02:34.7]} 17. Rad1 {[%clk 0:02:52.9]} 17... Rf3 {[%clk 0:02:27.8]} 18. Rd2
{[%clk 0:02:40.9]} 18... Raf8 {[%clk 0:02:26.6]} 19. Ba3 {[%clk 0:02:36.2]}
19... Re8 {[%clk 0:02:24.3]} 20. c4 {[%clk 0:02:31.8]} 20... b6 {[%clk
0:02:21.5]} 21. Qe4 {[%clk 0:02:28.6]} 21... Bf5 {[%clk 0:02:11.5]} 22. Qd4
{[%clk 0:02:27.4]} 22... c5 {[%clk 0:02:10.6]} 23. Qd5+ {[%clk 0:02:23.6]} 23...
Be6 {[%clk 0:02:10.9]} 24. Qb7 {[%clk 0:02:18.8]} 24... Ref8 {[%clk 0:01:55.2]}
25. Qxc7 {[%clk 0:02:17.8]} 25... Qg6 {[%clk 0:00:57.6]} 26. Qxb6 {[%clk
0:02:15.3]} 26... h5 {[%clk 0:00:55.5]} 27. Rd6 {[%clk 0:02:10.4]} 27... Rxf2
{[%clk 0:00:47.6]} 28. Rxf2 {[%clk 0:02:04.7]} 28... Qb1+ {[%clk 0:00:44.3]} 29.
Kg2 {[%clk 0:02:04.1]} 29... Qe4+ {[%clk 0:00:44.1]} 30. Kg1 {[%clk 0:01:55.6]}
30... Qb1+ {[%clk 0:00:37]} 31. Kg2 {[%clk 0:01:52.2]} 31... Qe4+ {[%clk
0:00:33]} 32. Kg1 {[%clk 0:01:47.5]} 32... Qxe3 {[%clk 0:00:19.8]} 33. Qxc5
{[%clk 0:01:37.1]} 33... Qe1+ {[%clk 0:00:12]} 34. Kg2 {[%clk 0:01:37.3]} 34...
Qe4+ {[%clk 0:00:11.8]} 35. Kf1 {[%clk 0:01:38]} 35... Qb1+ {[%clk 0:00:11.5]}
36. Ke2 {[%clk 0:01:37.7]} 36... Qe4+ {[%clk 0:00:10.2]} 37. Kd2 {[%clk
0:01:35.8]} 37... Bf5 {[%clk 0:00:03.2]} 38. Qd5+ {[%clk 0:01:32.4]} 38... Qxd5+
{[%clk 0:00:03.2]} 39. cxd5 {[%clk 0:01:32.2]} 1-0

[Event "Late-Titled-Tuesday-Blitz-January-16-2024"]
[Site "Chess.com"]
[Date "2024.01.16"]
[Round "11"]
[White "KorolDimitriy75"]
[Black "ChessRook_E"]
[Result "0-1"]
[WhiteElo "2352"]
[BlackElo "2224"]
[TimeControl "180+1"]
[EndTime "16:05:44 PST"]
[Termination "ChessRook_E won on time"]

1. d4 {[%clk 0:02:57.3]} 1... Nf6 {[%clk 0:03:00.1]} 2. c4 {[%clk 0:02:57.3]}
2... e6 {[%clk 0:03:00.2]} 3. Nc3 {[%clk 0:02:57.9]} 3... b6 {[%clk 0:03:00.8]}
4. Qc2 {[%clk 0:02:56.7]} 4... Bb7 {[%clk 0:03:00.9]} 5. e4 {[%clk 0:02:57]}
5... d5 {[%clk 0:03:01.2]} 6. cxd5 {[%clk 0:02:56.8]} 6... exd5 {[%clk
0:03:00.9]} 7. e5 {[%clk 0:02:57.7]} 7... Ne4 {[%clk 0:03:01]} 8. Bd3 {[%clk
0:02:56.3]} 8... Nc6 {[%clk 0:02:50.5]} 9. Nge2 {[%clk 0:01:25.1]} 9... Nb4
{[%clk 0:02:45.6]} 10. Qa4+ {[%clk 0:01:14.8]} 10... Bc6 {[%clk 0:02:44.1]} 11.
Bb5 {[%clk 0:01:14.6]} 11... Bxb5 {[%clk 0:02:40.7]} 12. Qxb5+ {[%clk 0:01:13]}
12... c6 {[%clk 0:02:41.2]} 13. Qa4 {[%clk 0:01:12.8]} 13... Nd3+ {[%clk
0:02:35.3]} 14. Kf1 {[%clk 0:01:11.1]} 14... Qd7 {[%clk 0:02:16.6]} 15. Nxe4
{[%clk 0:00:47.9]} 15... dxe4 {[%clk 0:02:13.4]} 16. Qc2 {[%clk 0:00:33.6]}
16... Rc8 {[%clk 0:02:11.5]} 17. f3 {[%clk 0:00:18.5]} 17... exf3 {[%clk
0:01:56.8]} 18. Qxd3 {[%clk 0:00:18.5]} 18... fxe2+ {[%clk 0:01:56.9]} 19. Kxe2
{[%clk 0:00:19.1]} 19... Qg4+ {[%clk 0:01:54.3]} 20. Kf2 {[%clk 0:00:18.8]}
20... Rd8 {[%clk 0:01:51.3]} 21. Be3 {[%clk 0:00:18]} 21... Bc5 {[%clk
0:01:51.5]} 22. Rad1 {[%clk 0:00:16.6]} 22... O-O {[%clk 0:01:47.6]} 23. Rhf1
{[%clk 0:00:16.1]} 23... Bxd4 {[%clk 0:01:43]} 24. Bxd4 {[%clk 0:00:15.5]} 24...
c5 {[%clk 0:01:43.6]} 25. Qf3 {[%clk 0:00:13.3]} 25... Rxd4 {[%clk 0:01:40.4]}
26. Qxg4 {[%clk 0:00:12.1]} 26... Rxg4 {[%clk 0:01:41.1]} 27. Rd7 {[%clk
0:00:11.5]} 27... Re4 {[%clk 0:01:41]} 28. Rfd1 {[%clk 0:00:09.5]} 28... Rxe5
{[%clk 0:01:40.9]} 29. Rxa7 {[%clk 0:00:09.6]} 29... Rfe8 {[%clk 0:01:40.8]} 30.
Rdd7 {[%clk 0:00:09.2]} 30... Rf5+ {[%clk 0:01:36.8]} 31. Kg3 {[%clk 0:00:09.1]}
31... g6 {[%clk 0:01:37.1]} 32. h3 {[%clk 0:00:07.7]} 32... Re3+ {[%clk
0:01:36.6]} 33. Kh2 {[%clk 0:00:06.8]} 33... Re2 {[%clk 0:01:37.1]} 34. Kg3
{[%clk 0:00:05.7]} 34... Rff2 {[%clk 0:01:33.5]} 35. b3 {[%clk 0:00:04.5]} 35...
Rxg2+ {[%clk 0:01:33.5]} 36. Kf3 {[%clk 0:00:04.6]} 36... Rgf2+ {[%clk 0:01:34]}
37. Kg3 {[%clk 0:00:04.6]} 37... Rxa2 {[%clk 0:01:34]} 38. Rab7 {[%clk
0:00:03.8]} 38... Rf5 {[%clk 0:01:28.4]} 39. Rxb6 {[%clk 0:00:03.2]} 39... Raf2
{[%clk 0:01:28.2]} 40. Rbb7 {[%clk 0:00:02.8]} 40... R5f3+ {[%clk 0:01:25.9]}
41. Kg4 {[%clk 0:00:02.6]} 41... h5+ {[%clk 0:01:25.9]} 42. Kg5 {[%clk
0:00:02.6]} 42... Kg7 {[%clk 0:01:25.7]} 43. Rbc7 {[%clk 0:00:01.4]} 43... Rg2+
{[%clk 0:01:25.6]} 0-1

[Event "Late-Titled-Tuesday-Blitz-January-16-2024"]
[Site "Chess.com"]
[Date "2024.01.16"]
[Round "11"]
[White "ChristopherYoo"]
[Black "GMKrikor"]
[Result "1-0"]
[WhiteElo "2990"]
[BlackElo "2760"]
[TimeControl "180+1"]
[EndTime "16:05:47 PST"]
[Termination "ChristopherYoo won by checkmate"]

1. e4 {[%clk 0:03:00.9]} 1... e6 {[%clk 0:03:00.1]} 2. Nf3 {[%clk 0:03:00.8]}
2... d5 {[%clk 0:03:00.4]} 3. exd5 {[%clk 0:03:00.2]} 3... exd5 {[%clk
0:03:00.7]} 4. d4 {[%clk 0:03:00.9]} 4... Nc6 {[%clk 0:03:00.7]} 5. Bb5 {[%clk
0:03:00.7]} 5... Bd6 {[%clk 0:02:57.7]} 6. O-O {[%clk 0:02:57.7]} 6... Ne7
{[%clk 0:02:55.5]} 7. Re1 {[%clk 0:02:51.6]} 7... O-O {[%clk 0:02:54.8]} 8. h3
{[%clk 0:02:50.8]} 8... Bf5 {[%clk 0:02:53.4]} 9. c3 {[%clk 0:02:45.5]} 9... a6
{[%clk 0:02:50.7]} 10. Bf1 {[%clk 0:02:39.8]} 10... Qd7 {[%clk 0:02:50.1]} 11.
Nbd2 {[%clk 0:02:37.5]} 11... Rfe8 {[%clk 0:02:47.7]} 12. Nb3 {[%clk 0:02:32.9]}
12... b6 {[%clk 0:02:43.6]} 13. Ne5 {[%clk 0:02:28.9]} 13... Bxe5 {[%clk
0:02:40.8]} 14. dxe5 {[%clk 0:02:28.4]} 14... h6 {[%clk 0:02:18.8]} 15. g4
{[%clk 0:02:23.3]} 15... Bh7 {[%clk 0:02:14.7]} 16. Bg2 {[%clk 0:02:18.9]} 16...
Rad8 {[%clk 0:02:08.3]} 17. f4 {[%clk 0:02:02.8]} 17... Ng6 {[%clk 0:01:54.5]}
18. Be3 {[%clk 0:01:58.6]} 18... Nh4 {[%clk 0:01:49.4]} 19. Bh1 {[%clk
0:01:57.6]} 19... Be4 {[%clk 0:01:49.5]} 20. Bxe4 {[%clk 0:01:57]} 20... dxe4
{[%clk 0:01:48.2]} 21. Qxd7 {[%clk 0:01:57.7]} 21... Rxd7 {[%clk 0:01:48.3]} 22.
Red1 {[%clk 0:01:53.1]} 22... Red8 {[%clk 0:01:43.6]} 23. Rxd7 {[%clk
0:01:53.4]} 23... Rxd7 {[%clk 0:01:43.6]} 24. Kf2 {[%clk 0:01:53.8]} 24... Nf3
{[%clk 0:01:28.6]} 25. Ke2 {[%clk 0:01:54.1]} 25... g5 {[%clk 0:01:26.1]} 26.
fxg5 {[%clk 0:01:52.3]} 26... hxg5 {[%clk 0:01:25.9]} 27. Nd2 {[%clk 0:01:50.2]}
27... Nxd2 {[%clk 0:01:08.6]} 28. Bxd2 {[%clk 0:01:49.6]} 28... Nxe5 {[%clk
0:01:05.7]} 29. Bxg5 {[%clk 0:01:48.5]} 29... Rd3 {[%clk 0:01:03.6]} 30. Rh1
{[%clk 0:01:46.5]} 30... Nc4 {[%clk 0:00:50.8]} 31. b3 {[%clk 0:01:44.8]} 31...
Nd6 {[%clk 0:00:41.2]} 32. c4 {[%clk 0:01:41.8]} 32... f5 {[%clk 0:00:34.4]} 33.
Bf4 {[%clk 0:01:40.8]} 33... Kf7 {[%clk 0:00:30.6]} 34. g5 {[%clk 0:01:21.5]}
34... Kg6 {[%clk 0:00:26.9]} 35. h4 {[%clk 0:01:21.8]} 35... Kh5 {[%clk
0:00:27.5]} 36. Rg1 {[%clk 0:01:21.8]} 36... Ne8 {[%clk 0:00:20]} 37. g6 {[%clk
0:01:22.2]} 37... Ng7 {[%clk 0:00:18.3]} 38. Bxc7 {[%clk 0:01:21.9]} 38... Kxh4
{[%clk 0:00:09.1]} 39. Be5 {[%clk 0:01:10.4]} 39... Rd7 {[%clk 0:00:09.1]} 40.
Bxg7 {[%clk 0:01:09.5]} 40... Rxg7 {[%clk 0:00:09.1]} 41. Ke3 {[%clk 0:01:10.2]}
41... Kh5 {[%clk 0:00:09.7]} 42. Kf4 {[%clk 0:01:10.5]} 42... Rxg6 {[%clk
0:00:10.3]} 43. Rh1# {[%clk 0:01:10.5]} 1-0

[Event "Late-Titled-Tuesday-Blitz-January-16-2024"]
[Site "Chess.com"]
[Date "2024.01.16"]
[Round "11"]
[White "Jagerrmeisterr"]
[Black "Actuary44"]
[Result "1-0"]
[WhiteElo "2717"]
[BlackElo "2507"]
[TimeControl "180+1"]
[EndTime "16:05:53 PST"]
[Termination "Jagerrmeisterr won by resignation"]

1. Nf3 {[%clk 0:03:00.3]} 1... d6 {[%clk 0:02:59.9]} 2. d4 {[%clk 0:02:59.6]}
2... g6 {[%clk 0:02:59.5]} 3. Nc3 {[%clk 0:02:55.7]} 3... f5 {[%clk 0:02:57.2]}
4. h4 {[%clk 0:02:55.1]} 4... h6 {[%clk 0:02:51.9]} 5. e4 {[%clk 0:02:51.5]}
5... fxe4 {[%clk 0:02:51.5]} 6. Nxe4 {[%clk 0:02:51.7]} 6... Bg7 {[%clk
0:02:51.9]} 7. Bd3 {[%clk 0:02:45.9]} 7... Bf5 {[%clk 0:02:51.4]} 8. Ng3 {[%clk
0:02:44.1]} 8... e6 {[%clk 0:02:46.7]} 9. h5 {[%clk 0:02:39.8]} 9... Ne7 {[%clk
0:02:33.3]} 10. hxg6 {[%clk 0:02:30.9]} 10... Bxd3 {[%clk 0:02:31.9]} 11. Qxd3
{[%clk 0:02:31.8]} 11... Nbc6 {[%clk 0:02:31.6]} 12. Be3 {[%clk 0:02:21.4]}
12... Qd7 {[%clk 0:02:31.5]} 13. Nh5 {[%clk 0:02:21.2]} 13... Nf5 {[%clk
0:02:24.1]} 14. O-O-O {[%clk 0:01:47.8]} 14... O-O-O {[%clk 0:02:22.5]} 15. c3
{[%clk 0:01:41.6]} 15... Rdg8 {[%clk 0:02:11.4]} 16. g4 {[%clk 0:01:33.4]} 16...
Nxe3 {[%clk 0:02:09.2]} 17. fxe3 {[%clk 0:01:34.3]} 17... Ne7 {[%clk 0:02:03.1]}
18. Nh4 {[%clk 0:01:24.3]} 18... Nd5 {[%clk 0:01:29.8]} 19. Rhf1 {[%clk
0:01:21]} 19... Qe7 {[%clk 0:01:27.3]} 20. Ng2 {[%clk 0:01:04.1]} 20... Qg5
{[%clk 0:01:24.9]} 21. Qe4 {[%clk 0:01:04.2]} 21... Kb8 {[%clk 0:00:57.3]} 22.
Rf7 {[%clk 0:00:57.7]} 22... Bf6 {[%clk 0:00:48.7]} 23. Ngf4 {[%clk 0:00:41]}
23... Bd8 {[%clk 0:00:22.9]} 24. g7 {[%clk 0:00:35.1]} 24... Rxg7 {[%clk
0:00:12.1]} 25. Rxg7 {[%clk 0:00:32.6]} 25... Qh4 {[%clk 0:00:09.5]} 26. Ng6
{[%clk 0:00:33.1]} 1-0

[Event "Late-Titled-Tuesday-Blitz-January-16-2024"]
[Site "Chess.com"]
[Date "2024.01.16"]
[Round "11"]
[White "Bryanl106"]
[Black "DeArron_Fox"]
[Result "1-0"]
[WhiteElo "2574"]
[BlackElo "2446"]
[TimeControl "180+1"]
[EndTime "16:05:54 PST"]
[Termination "Bryanl106 won on time"]

1. e4 {[%clk 0:03:00.9]} 1... c5 {[%clk 0:02:59.9]} 2. Nf3 {[%clk 0:03:00.8]}
2... e6 {[%clk 0:03:00.4]} 3. d4 {[%clk 0:03:01.3]} 3... cxd4 {[%clk 0:03:01.3]}
4. Nxd4 {[%clk 0:03:02.1]} 4... a6 {[%clk 0:03:01.8]} 5. Nc3 {[%clk 0:03:02.7]}
5... b5 {[%clk 0:03:02.3]} 6. Bd3 {[%clk 0:03:03.2]} 6... Bb7 {[%clk 0:03:03]}
7. O-O {[%clk 0:03:03.1]} 7... Nc6 {[%clk 0:03:03.9]} 8. Nxc6 {[%clk 0:03:02.9]}
8... Bxc6 {[%clk 0:03:04.8]} 9. Re1 {[%clk 0:03:01.4]} 9... Qb8 {[%clk
0:03:05.3]} 10. a4 {[%clk 0:03:00.6]} 10... bxa4 {[%clk 0:03:04.6]} 11. e5
{[%clk 0:02:37]} 11... Ne7 {[%clk 0:02:35.4]} 12. Qg4 {[%clk 0:02:17]} 12... Ng6
{[%clk 0:02:26.7]} 13. Qg3 {[%clk 0:02:17.1]} 13... d6 {[%clk 0:02:21]} 14. Be4
{[%clk 0:01:57.5]} 14... Bxe4 {[%clk 0:02:10.5]} 15. Nxe4 {[%clk 0:01:58.4]}
15... d5 {[%clk 0:01:48.3]} 16. Ng5 {[%clk 0:01:58.1]} 16... Bb4 {[%clk
0:01:16]} 17. c3 {[%clk 0:01:56.6]} 17... Bc5 {[%clk 0:01:09.4]} 18. Rxa4 {[%clk
0:01:52.8]} 18... Qb3 {[%clk 0:00:34.5]} 19. Rg4 {[%clk 0:01:46.8]} 19... Rd8
{[%clk 0:00:07.8]} 20. h4 {[%clk 0:01:44.2]} 20... h5 {[%clk 0:00:04.9]} 21.
Nxe6 {[%clk 0:01:42]} 21... hxg4 {[%clk 0:00:05.1]} 22. Nxc5 {[%clk 0:01:38.1]}
22... Qc4 {[%clk 0:00:05]} 23. b4 {[%clk 0:01:34.8]} 23... O-O {[%clk
0:00:02.9]} 24. h5 {[%clk 0:01:31.8]} 24... Ne7 {[%clk 0:00:02.3]} 25. Bf4
{[%clk 0:01:20.9]} 25... Nf5 {[%clk 0:00:02.4]} 26. Qxg4 {[%clk 0:01:20.5]}
26... Qxc3 {[%clk 0:00:02.8]} 27. Rc1 {[%clk 0:01:19]} 27... Qxb4 {[%clk
0:00:01.8]} 28. Qxf5 {[%clk 0:01:18.5]} 28... Rc8 {[%clk 0:00:02.5]} 29. Nd3
{[%clk 0:01:00.3]} 29... Rxc1+ {[%clk 0:00:02.8]} 30. Bxc1 {[%clk 0:01:00.6]}
30... Qb1 {[%clk 0:00:02.8]} 31. h6 {[%clk 0:00:52.3]} 31... gxh6 {[%clk
0:00:02.4]} 32. Kh2 {[%clk 0:00:51.4]} 32... a5 {[%clk 0:00:02.3]} 33. Bxh6
{[%clk 0:00:50.5]} 33... Rb8 {[%clk 0:00:01.2]} 34. Qg4+ {[%clk 0:00:50.6]} 1-0

[Event "Late-Titled-Tuesday-Blitz-January-16-2024"]
[Site "Chess.com"]
[Date "2024.01.16"]
[Round "11"]
[White "texie1"]
[Black "Godzillator"]
[Result "0-1"]
[WhiteElo "2502"]
[BlackElo "2393"]
[TimeControl "180+1"]
[EndTime "16:05:58 PST"]
[Termination "Godzillator won by resignation"]

1. Nf3 {[%clk 0:02:55.7]} 1... b6 {[%clk 0:02:55.7]} 2. e4 {[%clk 0:02:52.7]}
2... Bb7 {[%clk 0:02:55.9]} 3. Nc3 {[%clk 0:02:52.8]} 3... Nf6 {[%clk
0:02:54.1]} 4. e5 {[%clk 0:02:52.1]} 4... Nd5 {[%clk 0:02:54.3]} 5. d4 {[%clk
0:02:50.5]} 5... Nxc3 {[%clk 0:02:52.8]} 6. bxc3 {[%clk 0:02:50.3]} 6... e6
{[%clk 0:02:53.3]} 7. Bd3 {[%clk 0:02:49.9]} 7... c5 {[%clk 0:02:53.1]} 8. O-O
{[%clk 0:02:47.7]} 8... Nc6 {[%clk 0:02:53.2]} 9. Be3 {[%clk 0:02:46.2]} 9...
Rc8 {[%clk 0:02:49.8]} 10. Be4 {[%clk 0:02:40.7]} 10... Na5 {[%clk 0:02:43.2]}
11. d5 {[%clk 0:02:23.1]} 11... Nc4 {[%clk 0:02:37.9]} 12. Bf4 {[%clk
0:02:18.3]} 12... g6 {[%clk 0:02:20.1]} 13. Qd3 {[%clk 0:02:12.4]} 13... exd5
{[%clk 0:02:08]} 14. Bxd5 {[%clk 0:02:11.9]} 14... Bxd5 {[%clk 0:02:08]} 15.
Qxd5 {[%clk 0:02:10.3]} 15... Na5 {[%clk 0:02:07.7]} 16. Ng5 {[%clk 0:02:02.8]}
16... Qe7 {[%clk 0:02:04]} 17. Ne4 {[%clk 0:02:02.7]} 17... Qe6 {[%clk
0:01:57.3]} 18. Nf6+ {[%clk 0:01:54.8]} 18... Kd8 {[%clk 0:01:57.5]} 19. Qf3
{[%clk 0:01:25]} 19... Be7 {[%clk 0:01:55]} 20. Rad1 {[%clk 0:01:22.6]} 20...
Bxf6 {[%clk 0:01:53.3]} 21. exf6 {[%clk 0:01:23.5]} 21... Re8 {[%clk 0:01:45]}
22. Rd6 {[%clk 0:01:08.5]} 22... Qe4 {[%clk 0:01:36.8]} 23. Qh3 {[%clk
0:00:33.4]} 23... Rc7 {[%clk 0:01:31.3]} 24. Bg3 {[%clk 0:00:23.5]} 24... h5
{[%clk 0:01:28.2]} 25. Qh4 {[%clk 0:00:18.3]} 25... Qxh4 {[%clk 0:01:26]} 26.
Bxh4 {[%clk 0:00:19.2]} 26... Re6 {[%clk 0:01:25]} 27. Rfd1 {[%clk 0:00:18.3]}
27... Rxd6 {[%clk 0:01:24.5]} 28. Rxd6 {[%clk 0:00:19.2]} 28... Rc6 {[%clk
0:01:23.6]} 29. Rd3 {[%clk 0:00:19.6]} 29... Nc4 {[%clk 0:01:19.9]} 30. Bg5
{[%clk 0:00:18.1]} 30... Re6 {[%clk 0:01:19.1]} 31. h4 {[%clk 0:00:17.7]} 31...
Re1+ {[%clk 0:01:13.2]} 32. Kh2 {[%clk 0:00:18]} 32... Ne5 {[%clk 0:01:13.5]}
33. Re3 {[%clk 0:00:17.4]} 33... Ng4+ {[%clk 0:01:13.2]} 34. Kg3 {[%clk
0:00:17.3]} 34... Nxe3 {[%clk 0:01:13.4]} 35. Bxe3 {[%clk 0:00:18.2]} 35... Ra1
{[%clk 0:01:11]} 36. Kf4 {[%clk 0:00:18.7]} 36... Rxa2 {[%clk 0:01:11]} 37. Kg5
{[%clk 0:00:19.6]} 37... a5 {[%clk 0:01:09.4]} 38. Kh6 {[%clk 0:00:20.5]} 38...
a4 {[%clk 0:01:09.2]} 39. Kg7 {[%clk 0:00:21.4]} 39... Ke8 {[%clk 0:01:09.5]}
40. f3 {[%clk 0:00:19.6]} 40... Rxc2 {[%clk 0:01:08.4]} 41. g4 {[%clk
0:00:20.5]} 41... a3 {[%clk 0:01:07.2]} 42. gxh5 {[%clk 0:00:19.5]} 42... gxh5
{[%clk 0:01:07.3]} 43. c4 {[%clk 0:00:18.8]} 43... a2 {[%clk 0:01:05.7]} 44. Bg5
{[%clk 0:00:18.2]} 44... a1=Q {[%clk 0:01:05]} 45. f4 {[%clk 0:00:19.1]} 45...
Rxc4 {[%clk 0:01:03.3]} 46. Kh6 {[%clk 0:00:19.6]} 46... Rxf4 {[%clk 0:01:01.6]}
47. Kxh5 {[%clk 0:00:19.9]} 47... Rxf6 {[%clk 0:01:00.7]} 48. Bxf6 {[%clk
0:00:20.6]} 0-1

[Event "Late-Titled-Tuesday-Blitz-January-16-2024"]
[Site "Chess.com"]
[Date "2024.01.16"]
[Round "11"]
[White "The_Straightforward_Rook"]
[Black "Chempiblinka"]
[Result "0-1"]
[WhiteElo "2445"]
[BlackElo "2324"]
[TimeControl "180+1"]
[EndTime "16:06:00 PST"]
[Termination "Chempiblinka won on time"]

1. e4 {[%clk 0:01:41.6]} 1... c5 {[%clk 0:02:58.9]} 2. c3 {[%clk 0:01:41.3]}
2... Nf6 {[%clk 0:02:55]} 3. e5 {[%clk 0:01:41.3]} 3... Nd5 {[%clk 0:02:54.7]}
4. Nf3 {[%clk 0:01:42.2]} 4... d6 {[%clk 0:02:51.8]} 5. Bc4 {[%clk 0:01:42.4]}
5... Nb6 {[%clk 0:02:50.9]} 6. e6 {[%clk 0:01:42.8]} 6... Bxe6 {[%clk
0:02:20.8]} 7. Bxe6 {[%clk 0:01:41.1]} 7... fxe6 {[%clk 0:02:21.7]} 8. Ng5
{[%clk 0:01:39.3]} 8... Qd7 {[%clk 0:02:15.7]} 9. d4 {[%clk 0:01:34.1]} 9...
cxd4 {[%clk 0:02:11.9]} 10. cxd4 {[%clk 0:01:33.9]} 10... Nc6 {[%clk 0:02:08.5]}
11. O-O {[%clk 0:01:26.9]} 11... g6 {[%clk 0:02:08.4]} 12. Re1 {[%clk
0:01:24.3]} 12... e5 {[%clk 0:02:05.9]} 13. d5 {[%clk 0:01:18.1]} 13... Nd4
{[%clk 0:02:04.5]} 14. Be3 {[%clk 0:01:18.6]} 14... h6 {[%clk 0:01:49]} 15. Bxd4
{[%clk 0:01:17.6]} 15... hxg5 {[%clk 0:01:48.9]} 16. Bxb6 {[%clk 0:01:15.2]}
16... axb6 {[%clk 0:01:48.1]} 17. Qd3 {[%clk 0:01:15.4]} 17... Rh6 {[%clk
0:01:40.4]} 18. Nc3 {[%clk 0:01:14.4]} 18... Bg7 {[%clk 0:01:35.5]} 19. a4
{[%clk 0:01:08.1]} 19... Ra5 {[%clk 0:01:32.6]} 20. Nb5 {[%clk 0:01:06.9]} 20...
Qf5 {[%clk 0:01:31.4]} 21. Qc4 {[%clk 0:01:02.1]} 21... Kf7 {[%clk 0:01:26.6]}
22. Ra3 {[%clk 0:00:59.1]} 22... Rh4 {[%clk 0:01:18.7]} 23. Qc7 {[%clk
0:00:55.6]} 23... Qf6 {[%clk 0:00:59.2]} 24. Qxb6 {[%clk 0:00:48.3]} 24... Raxa4
{[%clk 0:00:57.4]} 25. Rc3 {[%clk 0:00:41.5]} 25... Rac4 {[%clk 0:00:55.9]} 26.
Qxb7 {[%clk 0:00:32.4]} 26... Rhe4 {[%clk 0:00:53]} 27. Rec1 {[%clk 0:00:24.6]}
27... Rxc3 {[%clk 0:00:51.4]} 28. bxc3 {[%clk 0:00:22.6]} 28... Re2 {[%clk
0:00:47.9]} 29. Qa7 {[%clk 0:00:21.9]} 29... g4 {[%clk 0:00:45.3]} 0-1